[Event "GrandPrix_29.05"]
[Site "Chess.com"]
[Date "2020.05.29"]
[Round "7"]
[White "Aliakbarov_Anar"]
[Black "Alexander_Moskalenko"]
[Result "0-1"]
[WhiteElo "2150"]
[BlackElo "2367"]
[TimeControl "600+2"]
[EndTime "12:27:34 PDT"]
[Termination "Alexander_Moskalenko won by resignation"]

1. d4 {[%clk 0:10:01.9]} 1... e6 {[%clk 0:09:56.5]} 2. c4 {[%clk 0:10:02.8]}
2... Nf6 {[%clk 0:09:29.5]} 3. Nc3 {[%clk 0:10:02.6]} 3... Bb4 {[%clk 0:09:21]}
4. a3 {[%clk 0:10:01.1]} 4... Bxc3+ {[%clk 0:09:21.9]} 5. bxc3 {[%clk
0:10:02.2]} 5... c5 {[%clk 0:09:21.9]} 6. e3 {[%clk 0:10:02.9]} 6... Nc6 {[%clk
0:09:18.7]} 7. Bd3 {[%clk 0:10:03.8]} 7... b6 {[%clk 0:09:16.1]} 8. Ne2 {[%clk
0:10:04.2]} 8... Bb7 {[%clk 0:09:16]} 9. O-O {[%clk 0:10:04.6]} 9... Na5 {[%clk
0:09:15.7]} 10. Ng3 {[%clk 0:09:04.6]} 10... Ba6 {[%clk 0:09:08.3]} 11. e4
{[%clk 0:08:04.6]} 11... Bxc4 {[%clk 0:08:58.1]} 12. Bxc4 {[%clk 0:08:03.4]}
12... Nxc4 {[%clk 0:09:00]} 13. e5 {[%clk 0:08:04.6]} 13... Nd5 {[%clk
0:08:56.1]} 14. Qg4 {[%clk 0:07:39.8]} 14... O-O {[%clk 0:08:56.5]} 15. Bh6
{[%clk 0:07:23.5]} 15... g6 {[%clk 0:08:57]} 16. Bxf8 {[%clk 0:07:20.3]} 16...
Qxf8 {[%clk 0:08:58.9]} 17. Ne4 {[%clk 0:07:15.2]} 17... d6 {[%clk 0:08:39.5]}
18. Nf6+ {[%clk 0:06:58.1]} 18... Nxf6 {[%clk 0:08:38.1]} 19. exf6 {[%clk
0:07:00]} 19... d5 {[%clk 0:08:36.4]} 20. Rfd1 {[%clk 0:06:01.7]} 20... h5
{[%clk 0:08:32.5]} 21. Qg5 {[%clk 0:05:59.3]} 21... Nd6 {[%clk 0:08:33.6]} 22.
Rd3 {[%clk 0:05:51.9]} 22... Ne4 {[%clk 0:08:28.7]} 23. Qe5 {[%clk 0:05:48.3]}
23... cxd4 {[%clk 0:08:06]} 24. cxd4 {[%clk 0:05:47.1]} 24... Qd8 {[%clk
0:08:07.5]} 25. Rc1 {[%clk 0:05:40.2]} 25... Nxf6 {[%clk 0:07:54.8]} 26. h3
{[%clk 0:05:22]} 26... Ne4 {[%clk 0:07:53.6]} 27. Rc7 {[%clk 0:05:06.1]} 27...
Nd6 {[%clk 0:07:54.6]} 28. Rc2 {[%clk 0:02:23]} 28... Nc4 {[%clk 0:07:53.4]} 29.
Qf4 {[%clk 0:02:21.7]} 29... Rc8 {[%clk 0:07:54.2]} 30. Rf3 {[%clk 0:02:21.4]}
30... Qe7 {[%clk 0:07:50.3]} 31. Rcc3 {[%clk 0:02:09.7]} 31... b5 {[%clk
0:07:39]} 32. Rb3 {[%clk 0:02:10.1]} 32... a6 {[%clk 0:07:39.6]} 33. Qh6 {[%clk
0:01:58.7]} 33... Qf8 {[%clk 0:07:33.8]} 34. Qg5 {[%clk 0:01:58.3]} 34... Qg7
{[%clk 0:07:35]} 35. Qf4 {[%clk 0:01:49.3]} 35... g5 {[%clk 0:07:18.8]} 36. Qc1
{[%clk 0:01:38.4]} 36... Nd6 {[%clk 0:07:09.9]} 37. Rbc3 {[%clk 0:01:38.5]}
37... Rc4 {[%clk 0:07:10.6]} 38. Rxc4 {[%clk 0:01:37.4]} 38... bxc4 {[%clk
0:07:12.5]} 39. Qb2 {[%clk 0:01:30.3]} 39... Nf5 {[%clk 0:07:13.3]} 40. Qb8+
{[%clk 0:01:18.7]} 40... Kh7 {[%clk 0:07:11.9]} 41. Qe8 {[%clk 0:01:17.9]} 41...
Kg6 {[%clk 0:07:03.2]} 42. h4 {[%clk 0:00:50.1]} 42... g4 {[%clk 0:06:52.8]} 43.
Rf4 {[%clk 0:00:46.5]} 43... Nxd4 {[%clk 0:06:48.2]} 44. Kh2 {[%clk 0:00:39.5]}
44... e5 {[%clk 0:06:32.5]} 45. Rxd4 {[%clk 0:00:16.9]} 45... exd4 {[%clk
0:06:33.6]} 46. Qc6+ {[%clk 0:00:17.9]} 46... Qf6 {[%clk 0:06:34.9]} 47. Qxd5
{[%clk 0:00:18.4]} 47... c3 {[%clk 0:06:18.9]} 48. Qe4+ {[%clk 0:00:18.8]} 48...
Kg7 {[%clk 0:06:17.8]} 49. Kg1 {[%clk 0:00:16.3]} 49... Qd6 {[%clk 0:05:58.3]}
50. Qd3 {[%clk 0:00:13.6]} 50... Qc5 {[%clk 0:05:58.5]} 51. Qc2 {[%clk
0:00:14.1]} 51... d3 {[%clk 0:05:56.6]} 52. Qxd3 {[%clk 0:00:12.6]} 52... c2
{[%clk 0:05:57.4]} 0-1

[Event "GrandPrix_29.05"]
[Site "Chess.com"]
[Date "2020.05.29"]
[Round "7"]
[White "temus_galaktionov"]
[Black "PavelShkapenko"]
[Result "1-0"]
[WhiteElo "2613"]
[BlackElo "2417"]
[TimeControl "600+2"]
[EndTime "12:27:41 PDT"]
[Termination "temus_galaktionov won by resignation"]

1. d4 {[%clk 0:10:01.9]} 1... Nf6 {[%clk 0:10:00.5]} 2. Nf3 {[%clk 0:10:00.6]}
2... e6 {[%clk 0:10:01.5]} 3. c4 {[%clk 0:09:56.7]} 3... Bb4+ {[%clk 0:10:01.8]}
4. Nbd2 {[%clk 0:09:57.1]} 4... d5 {[%clk 0:10:02.2]} 5. a3 {[%clk 0:09:57.7]}
5... Be7 {[%clk 0:10:00.4]} 6. e3 {[%clk 0:09:58.3]} 6... b6 {[%clk 0:09:57.8]}
7. b4 {[%clk 0:09:55.2]} 7... c6 {[%clk 0:09:16]} 8. Bd3 {[%clk 0:09:47.4]} 8...
a5 {[%clk 0:09:17]} 9. b5 {[%clk 0:09:36.3]} 9... O-O {[%clk 0:08:42.7]} 10. O-O
{[%clk 0:09:35.9]} 10... dxc4 {[%clk 0:08:17.6]} 11. Bxc4 {[%clk 0:09:37.8]}
11... c5 {[%clk 0:08:17]} 12. a4 {[%clk 0:09:29.1]} 12... Nbd7 {[%clk
0:08:17.1]} 13. Nb3 {[%clk 0:09:26.1]} 13... Bb7 {[%clk 0:08:16.4]} 14. Bb2
{[%clk 0:09:15]} 14... Rc8 {[%clk 0:08:15.7]} 15. Rc1 {[%clk 0:09:14.1]} 15...
cxd4 {[%clk 0:08:09.8]} 16. Nbxd4 {[%clk 0:09:10.5]} 16... Nc5 {[%clk
0:08:11.2]} 17. Ne5 {[%clk 0:09:11.2]} 17... Qc7 {[%clk 0:07:45.2]} 18. Nec6
{[%clk 0:08:57.8]} 18... Bd6 {[%clk 0:07:42.5]} 19. h3 {[%clk 0:08:56.4]} 19...
Rfe8 {[%clk 0:06:33.1]} 20. f4 {[%clk 0:08:37.4]} 20... Bf8 {[%clk 0:06:25.8]}
21. Qc2 {[%clk 0:07:01]} 21... Nd5 {[%clk 0:05:49.9]} 22. Bxd5 {[%clk
0:05:41.9]} 22... exd5 {[%clk 0:05:50.7]} 23. Rf3 {[%clk 0:05:42]} 23... Ne6
{[%clk 0:05:13.6]} 24. Qd1 {[%clk 0:05:24]} 24... Qd7 {[%clk 0:04:53.6]} 25. Ne5
{[%clk 0:05:16.9]} 25... Rxc1 {[%clk 0:04:49.4]} 26. Qxc1 {[%clk 0:05:18.8]}
26... Qc8 {[%clk 0:03:57.8]} 27. Qxc8 {[%clk 0:04:55.3]} 27... Rxc8 {[%clk
0:03:58]} 28. Nd7 {[%clk 0:04:37.2]} 28... Bc5 {[%clk 0:03:35.5]} 29. Nxe6
{[%clk 0:04:29.8]} 29... fxe6 {[%clk 0:03:35.9]} 30. Rg3 {[%clk 0:04:31.4]}
30... g6 {[%clk 0:03:29]} 31. h4 {[%clk 0:04:20.4]} 31... Be7 {[%clk 0:02:23.4]}
32. h5 {[%clk 0:04:19.4]} 32... Rc2 {[%clk 0:02:19.6]} 33. Bd4 {[%clk
0:04:17.3]} 33... Kf7 {[%clk 0:02:16.3]} 34. hxg6+ {[%clk 0:04:07.6]} 34... hxg6
{[%clk 0:02:16.7]} 35. Ne5+ {[%clk 0:04:07.6]} 35... Ke8 {[%clk 0:02:13.9]} 36.
Rxg6 {[%clk 0:04:09.5]} 36... Bc8 {[%clk 0:01:54.8]} 37. Rg8+ {[%clk 0:04:01.7]}
37... Bf8 {[%clk 0:01:55.6]} 38. Bxb6 {[%clk 0:03:55.1]} 38... Bb7 {[%clk
0:01:44.3]} 39. Bxa5 {[%clk 0:03:52.6]} 39... Rb2 {[%clk 0:01:31.3]} 40. Bb6
{[%clk 0:03:48.9]} 40... Rc2 {[%clk 0:01:31.7]} 41. a5 {[%clk 0:03:45.4]} 41...
d4 {[%clk 0:01:32.5]} 42. Bxd4 {[%clk 0:03:45.4]} 1-0

[Event "GrandPrix_29.05"]
[Site "Chess.com"]
[Date "2020.05.29"]
[Round "7"]
[White "Guenplen"]
[Black "swisspower96"]
[Result "1-0"]
[WhiteElo "2550"]
[BlackElo "2313"]
[TimeControl "600+2"]
[EndTime "12:27:57 PDT"]
[Termination "Guenplen won by checkmate"]

1. d4 {[%clk 0:10:01.9]} 1... Nf6 {[%clk 0:10:00.9]} 2. Bf4 {[%clk 0:10:02]}
2... d5 {[%clk 0:10:01.3]} 3. e3 {[%clk 0:10:02.7]} 3... c5 {[%clk 0:10:02.5]}
4. c3 {[%clk 0:10:03.7]} 4... Nc6 {[%clk 0:10:03.2]} 5. Nd2 {[%clk 0:10:03.9]}
5... Bf5 {[%clk 0:09:59.5]} 6. Ngf3 {[%clk 0:08:54.7]} 6... Qb6 {[%clk
0:09:39.9]} 7. dxc5 {[%clk 0:08:39.5]} 7... Qxb2 {[%clk 0:08:29.9]} 8. Nd4
{[%clk 0:08:36.4]} 8... Bg6 {[%clk 0:08:21.3]} 9. Bb5 {[%clk 0:08:25.4]} 9...
Rc8 {[%clk 0:08:11.9]} 10. O-O {[%clk 0:08:14.7]} 10... a6 {[%clk 0:06:16.8]}
11. Bxc6+ {[%clk 0:07:45.8]} 11... bxc6 {[%clk 0:06:16.4]} 12. Qa4 {[%clk
0:07:46.7]} 12... Qb7 {[%clk 0:04:28.6]} 13. Rab1 {[%clk 0:07:05.1]} 13... Bxb1
{[%clk 0:04:19.9]} 14. Rxb1 {[%clk 0:07:07]} 14... Qa8 {[%clk 0:04:21]} 15. Rb6
{[%clk 0:04:48.2]} 15... e5 {[%clk 0:01:54.4]} 16. Nxc6 {[%clk 0:03:50.7]} 16...
Bxc5 {[%clk 0:01:52.6]} 17. Nxe5+ {[%clk 0:03:34.4]} 17... Kf8 {[%clk
0:01:52.3]} 18. Rxf6 {[%clk 0:03:28]} 18... Kg8 {[%clk 0:00:33.4]} 19. Rxf7
{[%clk 0:03:13.4]} 19... Bd6 {[%clk 0:00:32.3]} 20. Rxg7+ {[%clk 0:02:58.2]}
20... Kxg7 {[%clk 0:00:26.8]} 21. Qd7+ {[%clk 0:02:58.2]} 21... Kg8 {[%clk
0:00:26.4]} 22. Qf7# {[%clk 0:02:58.1]} 1-0

[Event "GrandPrix_29.05"]
[Site "Chess.com"]
[Date "2020.05.29"]
[Round "7"]
[White "Poghosyan_Suren"]
[Black "Tokarev_Sergey"]
[Result "1-0"]
[WhiteElo "2089"]
[BlackElo "1989"]
[TimeControl "600+2"]
[EndTime "12:27:59 PDT"]
[Termination "Poghosyan_Suren won by resignation"]

1. e4 {[%clk 0:10:01.9]} 1... e6 {[%clk 0:10:00.5]} 2. d3 {[%clk 0:10:02.4]}
2... d5 {[%clk 0:10:01.6]} 3. Nd2 {[%clk 0:10:04.3]} 3... c5 {[%clk 0:10:02]} 4.
Ngf3 {[%clk 0:10:05.5]} 4... Nc6 {[%clk 0:10:02.1]} 5. g3 {[%clk 0:10:06.5]}
5... g6 {[%clk 0:10:02.2]} 6. Bg2 {[%clk 0:10:07.7]} 6... Bg7 {[%clk 0:10:02.9]}
7. O-O {[%clk 0:10:07.4]} 7... Nge7 {[%clk 0:09:55.7]} 8. exd5 {[%clk 0:10:01]}
8... exd5 {[%clk 0:09:52.4]} 9. d4 {[%clk 0:09:48.7]} 9... cxd4 {[%clk
0:09:33.9]} 10. Nb3 {[%clk 0:09:48.8]} 10... Bg4 {[%clk 0:09:32.8]} 11. Bg5
{[%clk 0:09:40.1]} 11... O-O {[%clk 0:09:27.2]} 12. Re1 {[%clk 0:09:33.7]} 12...
Re8 {[%clk 0:09:24.6]} 13. Qd2 {[%clk 0:09:31.6]} 13... Qd7 {[%clk 0:09:05.6]}
14. Nfxd4 {[%clk 0:09:29.2]} 14... Ne5 {[%clk 0:08:41.9]} 15. Qf4 {[%clk
0:09:11.6]} 15... N7c6 {[%clk 0:08:33.2]} 16. Bf6 {[%clk 0:08:48]} 16... Bxf6
{[%clk 0:07:57.1]} 17. Qxf6 {[%clk 0:08:32.9]} 17... Nxd4 {[%clk 0:07:52.4]} 18.
Nxd4 {[%clk 0:08:27.5]} 18... Nc4 {[%clk 0:07:36.9]} 19. b3 {[%clk 0:08:12]}
19... Nb6 {[%clk 0:06:20]} 20. a4 {[%clk 0:08:10.1]} 20... Rad8 {[%clk
0:05:49.5]} 21. Bf1 {[%clk 0:07:16.8]} 21... Rxe1 {[%clk 0:05:29.3]} 22. Rxe1
{[%clk 0:07:15.8]} 22... Re8 {[%clk 0:05:30.4]} 23. Rxe8+ {[%clk 0:07:02.3]}
23... Qxe8 {[%clk 0:05:32.3]} 24. h3 {[%clk 0:07:03.6]} 24... Be6 {[%clk
0:04:38.7]} 25. h4 {[%clk 0:06:31.6]} 25... Nd7 {[%clk 0:04:36.7]} 26. Qf4
{[%clk 0:06:31.6]} 26... Qb8 {[%clk 0:04:00]} 27. Nxe6 {[%clk 0:06:05]} 27...
fxe6 {[%clk 0:03:59.8]} 28. Qe3 {[%clk 0:06:06.2]} 28... e5 {[%clk 0:03:41.8]}
29. Bh3 {[%clk 0:06:04.1]} 29... Nf6 {[%clk 0:03:22.7]} 30. Qc5 {[%clk
0:05:51.9]} 30... Kf7 {[%clk 0:02:39.9]} 31. g4 {[%clk 0:05:24.2]} 31... b6
{[%clk 0:02:38]} 32. Qc6 {[%clk 0:05:24.8]} 32... Qe8 {[%clk 0:02:34.1]} 33.
Qb7+ {[%clk 0:04:54.3]} 33... Qe7 {[%clk 0:02:33.4]} 34. Qb8 {[%clk 0:04:55.1]}
34... Ne4 {[%clk 0:02:02.4]} 35. g5 {[%clk 0:04:45.4]} 35... Kg7 {[%clk
0:01:28.7]} 36. Bg2 {[%clk 0:04:25.5]} 36... Nc3 {[%clk 0:01:20.2]} 37. Qc8
{[%clk 0:04:17.7]} 37... Ne2+ {[%clk 0:01:13.7]} 38. Kf1 {[%clk 0:04:11.3]}
38... Nf4 {[%clk 0:01:15.6]} 39. Qc3 {[%clk 0:03:53.4]} 39... Qc5 {[%clk
0:01:00.6]} 40. Qxe5+ {[%clk 0:03:45.1]} 1-0

[Event "GrandPrix_29.05"]
[Site "Chess.com"]
[Date "2020.05.29"]
[Round "7"]
[White "Zubrrr"]
[Black "Gurvich_Vitaly"]
[Result "1-0"]
[WhiteElo "2595"]
[BlackElo "2394"]
[TimeControl "600+2"]
[EndTime "12:28:06 PDT"]
[Termination "Zubrrr won by resignation"]

1. c4 {[%clk 0:10:01.9]} 1... e5 {[%clk 0:09:59.4]} 2. g3 {[%clk 0:09:58.1]}
2... Nf6 {[%clk 0:09:58.1]} 3. Bg2 {[%clk 0:09:57.6]} 3... Nc6 {[%clk
0:09:58.9]} 4. Nc3 {[%clk 0:09:56.6]} 4... Bb4 {[%clk 0:09:59.3]} 5. Nd5 {[%clk
0:09:57]} 5... a5 {[%clk 0:09:59.1]} 6. e3 {[%clk 0:09:02.5]} 6... O-O {[%clk
0:09:56.4]} 7. Ne2 {[%clk 0:09:02.4]} 7... Re8 {[%clk 0:09:52.9]} 8. O-O {[%clk
0:09:00]} 8... Bf8 {[%clk 0:09:53.2]} 9. b3 {[%clk 0:08:05.5]} 9... Nb4 {[%clk
0:09:25]} 10. Nxf6+ {[%clk 0:06:26.6]} 10... Qxf6 {[%clk 0:09:23.9]} 11. Bb2
{[%clk 0:06:28]} 11... Nd3 {[%clk 0:09:19.7]} 12. Bc3 {[%clk 0:06:28.9]} 12...
c6 {[%clk 0:09:19.7]} 13. f4 {[%clk 0:05:15.2]} 13... Qh6 {[%clk 0:08:54.3]} 14.
Qb1 {[%clk 0:04:12.8]} 14... Nc5 {[%clk 0:08:11.6]} 15. fxe5 {[%clk 0:04:05.8]}
15... d6 {[%clk 0:08:12.5]} 16. exd6 {[%clk 0:03:51.5]} 16... Bxd6 {[%clk
0:08:14.4]} 17. Nd4 {[%clk 0:03:09.1]} 17... Qg6 {[%clk 0:08:12.1]} 18. Nf5
{[%clk 0:02:59.1]} 18... Bf8 {[%clk 0:08:10]} 19. e4 {[%clk 0:01:29]} 19... Bxf5
{[%clk 0:07:03.6]} 20. Rxf5 {[%clk 0:01:27.7]} 20... Qe6 {[%clk 0:06:59]} 21. e5
{[%clk 0:01:01.7]} 21... Qg6 {[%clk 0:06:27.4]} 22. d4 {[%clk 0:00:57.9]} 22...
Ne6 {[%clk 0:06:28.2]} 23. Qf1 {[%clk 0:00:42.9]} 23... Rad8 {[%clk 0:06:23.7]}
24. d5 {[%clk 0:00:37.8]} 24... Bc5+ {[%clk 0:06:24.1]} 25. Kh1 {[%clk
0:00:38.3]} 25... Nd4 {[%clk 0:06:25.3]} 26. Rf4 {[%clk 0:00:27.6]} 26... Ne6
{[%clk 0:05:34.1]} 27. dxe6 {[%clk 0:00:27.9]} 27... Qxe6 {[%clk 0:05:36]} 28.
Rd1 {[%clk 0:00:26.2]} 28... h6 {[%clk 0:05:31]} 29. Qe2 {[%clk 0:00:18.7]}
29... Bb6 {[%clk 0:05:21.3]} 30. Rff1 {[%clk 0:00:19.2]} 30... Qe7 {[%clk
0:05:18.8]} 31. Rxd8 {[%clk 0:00:19.4]} 31... Rxd8 {[%clk 0:05:20.7]} 32. Rd1
{[%clk 0:00:20]} 32... Re8 {[%clk 0:05:21.7]} 33. Qg4 {[%clk 0:00:17.1]} 33...
Rd8 {[%clk 0:05:10.1]} 34. Rxd8+ {[%clk 0:00:16.4]} 34... Bxd8 {[%clk 0:05:12]}
35. e6 {[%clk 0:00:15.8]} 35... fxe6 {[%clk 0:05:11.7]} 36. Bh3 {[%clk
0:00:14.9]} 36... Kf7 {[%clk 0:05:10]} 37. Qxg7+ {[%clk 0:00:15.3]} 37... Ke8
{[%clk 0:05:10.7]} 38. Qxe7+ {[%clk 0:00:16.4]} 38... Kxe7 {[%clk 0:05:09.9]}
39. Bg2 {[%clk 0:00:17.3]} 39... Kd6 {[%clk 0:05:09.4]} 40. Kg1 {[%clk
0:00:17.3]} 40... b5 {[%clk 0:05:10.8]} 41. cxb5 {[%clk 0:00:18.1]} 41... cxb5
{[%clk 0:05:12.7]} 42. Kf2 {[%clk 0:00:19.7]} 42... a4 {[%clk 0:05:10.7]} 43.
bxa4 {[%clk 0:00:18.1]} 43... bxa4 {[%clk 0:05:11.7]} 44. Be4 {[%clk 0:00:18.9]}
44... Kc5 {[%clk 0:05:12.6]} 45. Bd3 {[%clk 0:00:19.2]} 45... Bg5 {[%clk
0:05:04.9]} 46. Kf3 {[%clk 0:00:20]} 46... a3 {[%clk 0:05:03.2]} 47. Bg7 {[%clk
0:00:18.8]} 47... Kb4 {[%clk 0:05:03.1]} 48. Bc2 {[%clk 0:00:18.9]} 48... Bc1
{[%clk 0:05:02.5]} 49. Bb3 {[%clk 0:00:19.7]} 1-0

[Event "GrandPrix_29.05"]
[Site "Chess.com"]
[Date "2020.05.29"]
[Round "7"]
[White "Anton_Demchenko"]
[Black "Alexander_Donchenko"]
[Result "1-0"]
[WhiteElo "2667"]
[BlackElo "2697"]
[TimeControl "600+2"]
[EndTime "12:28:12 PDT"]
[Termination "Anton_Demchenko won by resignation"]

1. d4 {[%clk 0:10:01.9]} 1... Nf6 {[%clk 0:09:59]} 2. Nf3 {[%clk 0:10:02.4]}
2... d5 {[%clk 0:09:59.6]} 3. Bf4 {[%clk 0:10:03.3]} 3... c5 {[%clk 0:10:00.4]}
4. e3 {[%clk 0:10:03.4]} 4... Nc6 {[%clk 0:10:01.3]} 5. Nbd2 {[%clk 0:10:04.3]}
5... e6 {[%clk 0:10:00.1]} 6. c3 {[%clk 0:10:05]} 6... cxd4 {[%clk 0:09:59.3]}
7. exd4 {[%clk 0:10:03.9]} 7... Nh5 {[%clk 0:10:00.3]} 8. Bg3 {[%clk 0:10:04.8]}
8... Be7 {[%clk 0:09:56.4]} 9. Bd3 {[%clk 0:10:00.8]} 9... g6 {[%clk 0:09:28.8]}
10. O-O {[%clk 0:09:58.4]} 10... Nxg3 {[%clk 0:09:25.6]} 11. hxg3 {[%clk
0:09:59.2]} 11... O-O {[%clk 0:09:19.8]} 12. Re1 {[%clk 0:09:53]} 12... Bf6
{[%clk 0:09:12.3]} 13. b4 {[%clk 0:08:32.8]} 13... Bd7 {[%clk 0:09:04.6]} 14.
Nb3 {[%clk 0:08:31.6]} 14... b6 {[%clk 0:09:01.8]} 15. Qd2 {[%clk 0:08:18]}
15... Qc7 {[%clk 0:08:56.3]} 16. g4 {[%clk 0:08:12.3]} 16... Rfe8 {[%clk
0:08:34.8]} 17. g5 {[%clk 0:08:02.5]} 17... Bg7 {[%clk 0:08:34]} 18. b5 {[%clk
0:07:59.2]} 18... Ne7 {[%clk 0:08:26.6]} 19. Ne5 {[%clk 0:07:55]} 19... Rac8
{[%clk 0:07:33.4]} 20. Rac1 {[%clk 0:07:52.2]} 20... Nf5 {[%clk 0:07:28.6]} 21.
a4 {[%clk 0:07:32.7]} 21... Nd6 {[%clk 0:07:01.7]} 22. Qf4 {[%clk 0:06:45.4]}
22... a6 {[%clk 0:04:52.9]} 23. bxa6 {[%clk 0:06:44.2]} 23... Bxa4 {[%clk
0:04:47.5]} 24. Nd2 {[%clk 0:06:45.2]} 24... b5 {[%clk 0:03:52.6]} 25. Ndf3
{[%clk 0:06:17.8]} 25... Nc4 {[%clk 0:03:49.3]} 26. Bxc4 {[%clk 0:06:10.9]}
26... bxc4 {[%clk 0:03:42.4]} 27. Ra1 {[%clk 0:05:50.9]} 27... Bc2 {[%clk
0:03:38.5]} 28. Ra2 {[%clk 0:05:12]} 28... Be4 {[%clk 0:03:29.8]} 29. Nh2 {[%clk
0:04:50.5]} 29... Bf5 {[%clk 0:03:11.2]} 30. a7 {[%clk 0:04:41.1]} 30... Ra8
{[%clk 0:02:25.5]} 31. Rea1 {[%clk 0:04:29.2]} 31... Re7 {[%clk 0:02:14.2]} 32.
Ra6 {[%clk 0:03:27.6]} 32... Qb7 {[%clk 0:01:26.9]} 33. Nhg4 {[%clk 0:03:23.6]}
33... Bxg4 {[%clk 0:01:25.6]} 34. Nxg4 {[%clk 0:03:24]} 34... Qd7 {[%clk
0:01:01.7]} 35. Nf6+ {[%clk 0:03:16.5]} 35... Bxf6 {[%clk 0:01:00.8]} 36. gxf6
{[%clk 0:03:18.4]} 1-0

[Event "GrandPrix_29.05"]
[Site "Chess.com"]
[Date "2020.05.29"]
[Round "7"]
[White "Pash2015"]
[Black "TheJoker64"]
[Result "1-0"]
[WhiteElo "2261"]
[BlackElo "2339"]
[TimeControl "600+2"]
[EndTime "12:28:14 PDT"]
[Termination "Pash2015 won by resignation"]

1. e4 {[%clk 0:10:01.9]} 1... c5 {[%clk 0:09:59.4]} 2. d4 {[%clk 0:10:01.3]}
2... cxd4 {[%clk 0:09:59.5]} 3. Nf3 {[%clk 0:10:02.4]} 3... Nc6 {[%clk
0:09:59.3]} 4. Bc4 {[%clk 0:10:02.7]} 4... e6 {[%clk 0:09:53.2]} 5. O-O {[%clk
0:10:03]} 5... d6 {[%clk 0:09:48.5]} 6. Qe2 {[%clk 0:10:03.3]} 6... Nf6 {[%clk
0:09:47.6]} 7. Rd1 {[%clk 0:10:04.4]} 7... Be7 {[%clk 0:09:37.3]} 8. c3 {[%clk
0:10:04]} 8... d3 {[%clk 0:09:38]} 9. Bxd3 {[%clk 0:10:02.5]} 9... Qc7 {[%clk
0:09:38.7]} 10. c4 {[%clk 0:10:02.6]} 10... O-O {[%clk 0:09:37.5]} 11. Nc3
{[%clk 0:10:02.9]} 11... a6 {[%clk 0:09:38.7]} 12. h3 {[%clk 0:10:04.4]} 12...
b6 {[%clk 0:09:30.9]} 13. Bf4 {[%clk 0:10:04.1]} 13... Ne5 {[%clk 0:09:21]} 14.
Rac1 {[%clk 0:09:59.2]} 14... Bb7 {[%clk 0:09:14.3]} 15. b3 {[%clk 0:09:58]}
15... Nfd7 {[%clk 0:09:09.6]} 16. Bb1 {[%clk 0:09:55.3]} 16... Rfd8 {[%clk
0:09:02.4]} 17. Bg3 {[%clk 0:09:54.2]} 17... Qc5 {[%clk 0:08:41.3]} 18. Kh1
{[%clk 0:09:40.6]} 18... Rac8 {[%clk 0:08:31.6]} 19. Nd4 {[%clk 0:09:38.8]}
19... Bf6 {[%clk 0:07:40.3]} 20. f4 {[%clk 0:09:24.3]} 20... Nc6 {[%clk
0:07:18]} 21. Nxc6 {[%clk 0:08:51.4]} 21... Qxc6 {[%clk 0:07:11.1]} 22. f5
{[%clk 0:08:34.3]} 22... Be5 {[%clk 0:06:37.4]} 23. Bxe5 {[%clk 0:06:49]} 23...
Nxe5 {[%clk 0:06:37]} 24. f6 {[%clk 0:06:44.3]} 24... gxf6 {[%clk 0:06:21.6]}
25. Qf2 {[%clk 0:06:45.2]} 25... Qc5 {[%clk 0:04:30.5]} 26. Qxf6 {[%clk
0:06:26.4]} 26... Ng6 {[%clk 0:04:29.7]} 27. Rf1 {[%clk 0:06:17.2]} 27... Rd7
{[%clk 0:04:11.2]} 28. Na4 {[%clk 0:06:17.9]} 28... Qa5 {[%clk 0:03:50.4]} 29.
Qf2 {[%clk 0:06:19.1]} 29... Rc6 {[%clk 0:03:48]} 30. Rce1 {[%clk 0:06:09.8]}
30... b5 {[%clk 0:03:42.5]} 31. cxb5 {[%clk 0:06:02.2]} 31... axb5 {[%clk
0:03:42.9]} 32. Nb2 {[%clk 0:06:00.1]} 32... Qb6 {[%clk 0:03:11.4]} 33. Qg3
{[%clk 0:05:36.2]} 33... Qd4 {[%clk 0:03:09]} 34. Qf2 {[%clk 0:05:31.8]} 34...
Qxf2 {[%clk 0:03:04.6]} 35. Rxf2 {[%clk 0:05:33.7]} 35... Rdc7 {[%clk
0:02:55.7]} 36. Nd3 {[%clk 0:05:29.8]} 36... Rc3 {[%clk 0:02:51.4]} 37. Nb4
{[%clk 0:05:14.2]} 37... Ne5 {[%clk 0:02:44.4]} 38. Kh2 {[%clk 0:05:12.1]} 38...
Rc1 {[%clk 0:02:40.2]} 39. Rxc1 {[%clk 0:05:08.7]} 39... Rxc1 {[%clk 0:02:40.1]}
40. Bc2 {[%clk 0:05:10.6]} 40... Re1 {[%clk 0:02:37.5]} 41. Rd2 {[%clk
0:05:04.7]} 41... Bxe4 {[%clk 0:02:31.4]} 42. Rxd6 {[%clk 0:05:05.4]} 42... Bxc2
{[%clk 0:02:11.1]} 43. Nxc2 {[%clk 0:05:07.3]} 43... Re2 {[%clk 0:02:12.1]} 44.
Rd8+ {[%clk 0:05:03.8]} 44... Kg7 {[%clk 0:02:12]} 45. Rc8 {[%clk 0:05:05.7]}
45... h5 {[%clk 0:02:07.2]} 46. a4 {[%clk 0:05:03.2]} 46... bxa4 {[%clk
0:02:03.5]} 47. bxa4 {[%clk 0:05:05.1]} 47... h4 {[%clk 0:02:04.5]} 48. Rc5
{[%clk 0:05:05.1]} 48... Nd3 {[%clk 0:01:53.2]} 49. Rc4 {[%clk 0:05:02.8]} 49...
e5 {[%clk 0:01:49.1]} 50. a5 {[%clk 0:05:00.6]} 50... Nf4 {[%clk 0:01:23.6]} 51.
a6 {[%clk 0:05:01.7]} 51... Nxg2 {[%clk 0:00:59.2]} 52. Kg1 {[%clk 0:04:57.5]}
52... Ne1 {[%clk 0:00:59.6]} 53. a7 {[%clk 0:04:51.9]} 53... Nf3+ {[%clk
0:00:49]} 54. Kf1 {[%clk 0:04:51.3]} 54... Rd2 {[%clk 0:00:50.3]} 55. a8=Q
{[%clk 0:04:50]} 1-0